lending/lending_fUSD_20250829
["ID","MTS","AMOUNT","RATE_DAILY","PERIOD"]
[381936230,1756429841400,-1546.74,0.00020191,2]
[381936232,1756429841409,-16122.95121054,0.000202,2]
[381936234,1756429841419,-154.60564831,0.00020345,2]
[381936236,1756429841429,-587.0,0.00020391,2]
[381936238,1756429841440,-413.15,0.00020394,2]
[381936240,1756429841449,-500.0,0.00020456,2]
[381936242,1756429841459,-1546.74,0.00020465,2]
[381936244,1756429841469,-160.82,0.00020517,2]
[381936246,1756429841478,-1849.0,0.00020594,2]
[381936248,1756429841487,-298.26089446,0.00020616,2]
[381936250,1756429841497,-154.60564831,0.00020617,2]
[381936252,1756429841506,-346.92554585,0.00020627,2]
[381936254,1756429841516,-320.0,0.0002063,2]
[381936256,1756429841525,-500.0,0.0002073,2]
[381936258,1756429841535,-1546.74,0.00020739,2]
[381936260,1756429841545,-154.60564831,0.00020888,2]
[381936262,1756429841554,-150.58,0.00020957,2]
[381936264,1756429841563,-160.0,0.00020966,2]
[381936266,1756429841573,-212.25325354,0.00020966,2]
[381936268,1756429841582,-160.0,0.00020966,2]
[381936270,1756429841592,-409.82097998,0.00020966,2]
[381936272,1756429841601,-16122.95121054,0.00020967,2]
[381936274,1756429841612,-499.0,0.00021004,2]
[381936276,1756429841621,-1546.74,0.00021013,2]
[381936278,1756429841631,-938.77,0.00021081,2]
[381936280,1756429841640,-469.47,0.00021081,2]
[381936282,1756429841649,-468.96,0.00021081,2]
[381936284,1756429841658,-154.60564831,0.0002116,2]
[381936286,1756429841668,-500.0,0.00021173,2]
[381936288,1756429841677,-500.0,0.00021173,2]
[381936290,1756429841686,-150.58,0.0002119,2]
[381936292,1756429841695,-96360.20235371,0.000212,2]
[381936294,1756429841704,-151.0,0.000212,2]
[381936296,1756429841713,-151.0,0.000212,2]
[381936298,1756429841723,-151.0,0.000212,2]
[381936300,1756429841731,-194.628903,0.000212,2]
[381936302,1756429841741,-500.0,0.0002126,2]
[381936304,1756429841750,-1546.74,0.00021287,2]
[381936306,1756429841760,-177.84480109,0.00021344,2]
[381936308,1756429841769,-1000.0,0.00021372,2]
[381936310,1756429841779,-250.0,0.00021406,2]
[381936312,1756429841788,-166.71,0.00021457,2]
[381936313,1756429841798,-151.0,0.00021479,2]
[381936315,1756429841807,-150.0,0.00021479,2]
[381936317,1756429841816,-200.0,0.00021479,2]
[381936319,1756429841825,-195.708,0.00021479,2]
[381936321,1756429841834,-195.83,0.00021479,2]
[381936323,1756429841843,-150.26,0.00021479,2]
[381936326,1756429841853,-198.435,0.00021479,2]
[381936327,1756429841864,-186.56,0.00021479,2]
[381936329,1756429841873,-160.129,0.00021479,2]
[381936331,1756429841882,-207.277,0.00021479,2]
[381936333,1756429841891,-205.242,0.00021479,2]
[381936335,1756429841900,-250.0,0.00021479,2]
[381936337,1756429841909,-154.0,0.00021479,2]
[381936339,1756429841918,-210.22,0.00021479,2]
[381936341,1756429841927,-3376.0,0.00021479,2]
[381936343,1756429841936,-1256.0,0.00021479,2]
[381936345,1756429841945,-2032.0,0.00021479,2]
[381936347,1756429841955,-926.0,0.00021479,2]
[381936349,1756429841965,-1298.0,0.00021479,2]
[381936351,1756429841974,-566.0,0.00021479,2]
[381936353,1756429841984,-599.0,0.00021479,2]
[381936355,1756429841993,-1575.0,0.00021479,2]
[381936357,1756429842002,-1546.74,0.00021561,2]
[381936359,1756429842012,-600.0,0.00021616,2]
[381936361,1756429842020,-153.2398906,0.00021721,2]
[381936363,1756429842030,-16122.95121054,0.00021733,2]
[381936365,1756429842040,-627.0,0.0002182,2]
[381936367,1756429842049,-1546.74,0.00021835,2]
[381936369,1756429842059,-833.89963,0.000219,2]
[381936371,1756429842068,-5000.0,0.00021918,2]
[381936373,1756429842077,-309.29654756,0.00021985,2]
[381936375,1756429842087,-150.58,0.0002199,2]
[381936377,1756429842095,-359.76179104,0.00021996,2]
[381936379,1756429842105,-879.73,0.00022,7]
[381936381,1756429842115,-7509.99586125,0.00022,15]
[381936397,1756429842269,-409.82097998,0.00022,7]
[381936400,1756429842286,-29253.27,0.00022,2]
[381936402,1756429842295,-34794.23,0.00022,7]
[381936404,1756429842305,-484.57027283,0.000221,2]
[381936406,1756429842315,-345.87,0.000221,2]
[381936408,1756429842324,-1546.74,0.00022109,2]
[381936410,1756429842333,-235.47929062,0.0002211,2]
[381936412,1756429842342,-600.0,0.00022164,2]
[381936414,1756429842352,-160.82,0.00022227,2]
[381936416,1756429842362,-823.0,0.00022269,2]
[381936418,1756429842372,-500.0,0.00022331,2]
[381936420,1756429842392,-1500.0,0.00022331,2]
[381936422,1756429842411,-1546.74,0.00022383,2]
[381936424,1756429842428,-1045.78,0.00022465,2]
[381936426,1756429842437,-150.58,0.0002249,2]
[381936428,1756429842448,-34771.12968776,0.000225,2]
[381936430,1756429842457,-151.0,0.000225,7]
[381936432,1756429842466,-151.0,0.000225,7]
[381936434,1756429842476,-151.0,0.000225,7]
[381936436,1756429842484,-16122.95121054,0.000225,2]
[381936438,1756429842494,-172.9,0.00022603,2]
[381936440,1756429842503,-1546.74,0.00022657,2]
[381936442,1756429842513,-512.42248213,0.0002271,2]
[381936444,1756429842523,-600.0,0.00022712,2]
[381936446,1756429842532,-1546.74,0.00022931,2]
[381936449,1756429842542,-430.77382892,0.00023,2]
[381936450,1756429842552,-613.0,0.00023,2]
[381936452,1756429842561,-188.03783685,0.000231,2]
[381936454,1756429842570,-6148.0,0.00023169,2]
[381936456,1756429842580,-4156.0,0.00023169,2]
[381936458,1756429842589,-21111.0,0.00023169,2]
[381936460,1756429842599,-718.0,0.00023169,2]
[381936462,1756429842608,-150.58,0.0002319,2]
[381936464,1756429842618,-51093.83465656,0.000232,2]
[381936466,1756429842627,-1546.74,0.00023205,2]
[381936468,1756429842636,-600.0,0.0002326,2]
[381936471,1756429842646,-16122.95121054,0.00023267,2]
[381936473,1756429842656,-207.0,0.000233,2]
[381936475,1756429842665,-320.74051982,0.00023354,2]
[381936477,1756429842675,-373.07297731,0.00023365,2]
[381936478,1756429842684,-1546.74,0.00023479,2]
[381936480,1756429842693,-150.58,0.0002349,2]
[381936482,1756429842703,-200.0,0.000235,2]
[381936484,1756429842712,-29253.27,0.000235,2]
[381936486,1756429842721,-34794.23,0.000235,7]
[381936488,1756429842730,-151.0,0.000235,7]
[381936490,1756429842739,-151.0,0.000235,7]
[381936492,1756429842748,-151.0,0.000235,7]
[381936494,1756429842757,-1000.0,0.0002351,2]
[381936496,1756429842767,-345.87,0.00023545,2]
[381936498,1756429842776,-1546.74,0.00023753,2]
[381936500,1756429842785,-879.73,0.000238,7]
[381936502,1756429842794,-600.0,0.00023808,2]
[381936504,1756429842803,-833.89963,0.000239,2]
[381936506,1756429842812,-160.82,0.00023937,2]
[381936509,1756429842822,-1853.13,0.00023937,2]
[381936510,1756429842831,-728.7509535,0.00023984,2]
[381936512,1756429842841,-206.99027037,0.0002399,2]
[381936514,1756429842850,-150.58,0.0002399,2]
[381936516,1756429842859,-150.58,0.0002399,2]
[381936518,1756429842868,-150.58,0.0002399,2]
[381936520,1756429842877,-150.58,0.0002399,2]
[381936522,1756429842887,-150.58,0.0002399,2]
[381936524,1756429842896,-150.58,0.0002399,2]
[381936526,1756429842905,-150.58,0.0002399,2]
[381936529,1756429842915,-150.58,0.0002399,2]
[381936531,1756429842924,-150.58,0.0002399,2]
[381936533,1756429842933,-150.58,0.0002399,2]
[381936535,1756429842942,-150.58,0.0002399,2]
[381936537,1756429842951,-1029.4317058,0.00023999,10]
[381936539,1756429842960,-476772.3256156,0.00024,2]
[381936541,1756429842969,-467745.91402006,0.00024,2]
[381936544,1756429842979,-160.0,0.00024,7]
[381936547,1756429843001,-151.0,0.00024,7]
[381936550,1756429843012,-151.0,0.00024,7]
[381936553,1756429843022,-151.0,0.00024,7]
[381936556,1756429843031,-1546.74,0.00024027,2]
[381936558,1756429843041,-16122.95121054,0.00024033,2]
[381936561,1756429843050,-810.07148166,0.00024128,2]
[381936564,1756429843059,-150.99,0.00024174,2]
[381936567,1756429843068,-599.0,0.0002419,2]
[381936570,1756429843078,-664.7650404,0.00024284,2]
[381936573,1756429843087,-1546.86009134,0.00024301,2]
[381936576,1756429843096,-600.0,0.00024356,2]
[381936579,1756429843106,-150.0,0.00024479,2]
[381936582,1756429843116,-150.0,0.00024479,2]
[381936585,1756429843125,-150.0,0.00024479,2]
[381936589,1756429843135,-3376.0,0.00024479,2]
[381936592,1756429843144,-1256.0,0.00024479,2]
[381936595,1756429843153,-2032.0,0.00024479,2]
[381936597,1756429843163,-926.0,0.00024479,2]
[381936600,1756429843173,-1298.0,0.00024479,2]
[381936603,1756429843183,-566.0,0.00024479,2]
[381936605,1756429843192,-599.0,0.00024479,2]
[381936607,1756429843201,-1575.0,0.00024479,2]
[381936610,1756429843210,-1526.02130898,0.000246,2]
[381936613,1756429843219,-1045.78,0.00024657,4]
[381936615,1756429843229,-1000.0,0.00024658,2]
[381936617,1756429843238,-500.0,0.00024658,2]
[381936620,1756429843248,-227.80941276,0.00024704,2]
[381936623,1756429843258,-326.92475374,0.00024704,2]
[381936626,1756429843267,-158.76239399,0.00024704,4]
[381936629,1756429843276,-3796.57682967,0.00024704,2]
[381936632,1756429843286,-332.60791905,0.00024723,2]
[381936635,1756429843296,-386.87667747,0.00024734,2]
[381936638,1756429843305,-177.84480109,0.00024789,2]
[381936641,1756429843315,-150.58,0.0002479,2]
[381936644,1756429843324,-150.58,0.0002479,2]
[381936647,1756429843334,-150.58,0.0002479,2]
[381936649,1756429843343,-150.58,0.0002479,2]
[381936652,1756429843353,-150.58,0.0002479,2]
[381936655,1756429843364,-150.58,0.0002479,2]
[381936658,1756429843373,-150.58,0.0002479,2]
[381936660,1756429843384,-409.82097998,0.000248,3]
[381936662,1756429843395,-164.51,0.000248,4]
[381936664,1756429843404,-198.95,0.000248,4]
[381936666,1756429843415,-601610.593309,0.000248,3]
[381936668,1756429843425,-212.25325354,0.000248,3]
[381936670,1756429843435,-16122.95121054,0.000248,2]
[381936672,1756429843444,-222.39487227,0.00024804,2]
[381936674,1756429843454,-207.0,0.0002481,2]
[381936676,1756429843465,-600.7791273,0.00024883,2]
[381936678,1756429843475,-150.58,0.0002489,2]
[381936680,1756429843485,-150.58,0.0002489,2]
[381936682,1756429843495,-150.58,0.0002489,2]
[381936684,1756429843504,-150.58,0.0002489,2]
[381936686,1756429843514,-150.58,0.0002489,2]
[381936688,1756429843524,-160.0,0.000249,3]
[381936690,1756429843534,-844.93374113,0.000249,3]
[381936692,1756429843544,-446216.77914,0.000249,3]
[381936694,1756429843553,-160.0,0.000249,3]
[381936696,1756429843563,-7397.58767555,0.000249,2]
[381936698,1756429843572,-600.0,0.00024904,2]
[381936700,1756429843582,-464.51,0.00024908,2]
[381936702,1756429843592,-799.88,0.00024908,2]
[381936704,1756429843602,-500.0,0.00024932,2]
[381936706,1756429843612,-150.58,0.0002499,2]
[381936708,1756429843621,-1230.49594516,0.00025,2]
[381936710,1756429843630,-5860.82697275,0.00025,4]
[381936713,1756429843640,-29253.27,0.00025,2]
[381936714,1756429843649,-34794.23,0.00025,7]
[381936716,1756429843658,-345.87,0.00025091,7]
[381936718,1756429843667,-500.0,0.00025138,2]
[381936720,1756429843676,-1500.0,0.00025138,2]
[381936722,1756429843685,-500.0,0.00025206,2]
[381936724,1756429843694,-172.9,0.00025342,2]
[381936726,1756429843704,-585.0,0.0002537,2]
[381936728,1756429843713,-600.0,0.00025452,2]
[381936730,1756429843723,-500.0,0.0002548,2]
[381936732,1756429843732,-879.73,0.000255,7]
[381936734,1756429843741,-160.82,0.00025647,2]
[381936736,1756429843750,-1000.0,0.00025647,2]
[381936739,1756429843760,-597.89195262,0.00025713,8]
[381936741,1756429843769,-500.0,0.00025754,2]
[381936743,1756429843779,-938.26,0.00025867,2]
[381936745,1756429843788,-799.88,0.00025867,2]
[381936747,1756429843797,-799.88,0.00025867,2]
[381936749,1756429843807,-799.88,0.00025867,2]
[381936751,1756429843816,-799.88,0.00025867,2]
[381936753,1756429843825,-796.52,0.00025867,2]
[381936755,1756429843834,-7397.58767534,0.00025897,4]
[381936757,1756429843843,-833.89963,0.000259,2]
[381936759,1756429843852,-587.2780427,0.0002599,2]
[381936761,1756429843861,-4422.67938262,0.00026,2]
[381936763,1756429843870,-4433.65,0.00026,2]
[381936764,1756429843879,-2668.92454355,0.00026,2]
[381936766,1756429843888,-211.65444815,0.00026,2]
[381936768,1756429843897,-1096.42,0.00026,2]
[381936771,1756429843907,-600.0,0.00026,2]
[381936772,1756429843916,-500.0,0.00026028,2]
[381936774,1756429843925,-344.91441206,0.00026092,2]
[381936776,1756429843935,-519.01454456,0.00026103,2]
[381936778,1756429843944,-6148.0,0.00026169,2]
[381936780,1756429843954,-4156.0,0.00026169,2]
[381936782,1756429843963,-21111.0,0.00026169,2]
[381936784,1756429843976,-718.0,0.00026169,2]
[381936786,1756429843984,-150.58,0.00026292,2]
[381936788,1756429843993,-312.0871456,0.00026302,2]
[381936790,1756429844002,-207.0,0.0002632,2]
[381936792,1756429844011,-26880.45461651,0.000264,2]
[381936794,1756429844020,-46849.11287383,0.000265,2]
[381936796,1756429844029,-600.0,0.00026548,2]
[381936798,1756429844038,-571.0,0.0002655,2]
[381936800,1756429844047,-150.58,0.0002659,2]
[381936802,1756429844057,-29253.27,0.000266,2]
[381936804,1756429844066,-34794.23,0.000266,7]
[381936806,1756429844075,-345.87,0.00026636,7]
[381936808,1756429844083,-223.56,0.00026676,2]
[381936810,1756429844092,-1045.78,0.00026849,6]
[381936812,1756429844102,-7397.58767534,0.00026894,6]
[381936814,1756429844111,-536.7932142,0.00026992,2]
[381936816,1756429844120,-472.807301,0.00026992,2]
[381936818,1756429844129,-250.0,0.00027,2]
[381936820,1756429844138,-1011.39143109,0.00027,2]
[381936822,1756429844148,-3040.35745655,0.00027,2]
[381936824,1756429844157,-844.93374113,0.00027,7]
[381936826,1756429844166,-160.0,0.00027,7]
[381936828,1756429844176,-341.32047,0.00027,2]
[381936830,1756429844185,-206.99027037,0.00027,2]
[381936832,1756429844195,-150.58,0.00027,2]
[381936834,1756429844204,-150.58,0.00027,2]
[381936836,1756429844214,-150.58,0.00027,2]
[381936838,1756429844223,-150.58,0.00027,2]
[381936840,1756429844232,-150.58,0.00027,2]
[381936842,1756429844241,-1495110.36281004,0.0002701,2]
[381936844,1756429844251,-879.73,0.000271,7]
[381936846,1756429844260,-511.0,0.00027137,2]
[381936848,1756429844269,-176.08,0.00027237,2]
[381936850,1756429844278,-2370.9,0.00027237,2]
[381936852,1756429844287,-539.98,0.00027237,2]
[381936854,1756429844296,-817.3,0.00027237,2]
[381936856,1756429844306,-300.0,0.00027237,2]
[381936858,1756429844315,-166.18,0.00027237,2]
[381936860,1756429844324,-166.18,0.00027237,2]
[381936862,1756429844334,-539.98,0.00027237,2]
[381936864,1756429844343,-166.0,0.00027237,2]
[381936866,1756429844352,-173.87,0.00027237,2]
[381936868,1756429844361,-166.12,0.00027237,2]
[381936870,1756429844371,-539.98,0.00027237,2]
[381936872,1756429844382,-173.87,0.00027237,2]
[381936874,1756429844393,-173.87,0.00027237,2]
[381936876,1756429844403,-166.12,0.00027237,2]
[381936878,1756429844412,-538.96,0.00027237,2]
[381936880,1756429844423,-1096.42,0.000273,2]
[381936882,1756429844432,-4019.38858699,0.0002739,2]
[381936883,1756429844441,-7939.74878889,0.0002739,2]
[381936885,1756429844450,-3169.72993027,0.0002739,2]
[381936887,1756429844461,-150.0,0.0002739,2]
[381936889,1756429844470,-150.0,0.00027397,5]
[381936891,1756429844479,-357.6762453,0.00027461,2]
[381936894,1756429844489,-3376.0,0.00027479,2]
[381936895,1756429844498,-1256.0,0.00027479,2]
[381936897,1756429844507,-2032.0,0.00027479,2]
[381936899,1756429844516,-926.0,0.00027479,2]
[381936901,1756429844525,-1298.0,0.00027479,2]
[381936903,1756429844534,-566.0,0.00027479,2]
[381936905,1756429844543,-599.0,0.00027479,2]
[381936907,1756429844553,-1575.0,0.00027479,2]
[381936909,1756429844562,-196.66355246,0.000275,2]
[381936911,1756429844572,-537.15237956,0.000275,2]
[381936913,1756429844581,-4000.0,0.000275,4]
[381936915,1756429844590,-557.0,0.0002774,2]
[381936917,1756429844599,-207.0,0.0002783,2]
[381936919,1756429844608,-844.93374113,0.00027855,2]
[381936921,1756429844618,-7397.58767534,0.00027891,8]
[381936923,1756429844626,-833.89963,0.000279,2]
[381936925,1756429844635,-250.0,0.00027945,5]
[381936927,1756429844644,-500.0,0.00027945,2]
[381936929,1756429844653,-1500.0,0.00027945,2]
[381936931,1756429844662,-9000.0,0.00028,2]
[381936933,1756429844671,-173.87,0.00028059,2]
[381936935,1756429844680,-172.9,0.00028082,2]
[381936937,1756429844689,-345.87,0.00028181,30]
[381936939,1756429844698,-177.84480109,0.00028233,2]
[381936941,1756429844708,-810.07148166,0.00028365,2]
[381936943,1756429844717,-350.0,0.00028493,5]
[381936945,1756429844727,-2991.37,0.000285,7]
[381936947,1756429844736,-936.81,0.00028758,2]
[381936949,1756429844745,-1159.41,0.00028758,2]
[381936951,1756429844754,-370.91026638,0.0002883,2]
[381936953,1756429844764,-7397.58767534,0.00028888,10]
[381936955,1756429844773,-543.0,0.0002892,2]
[381936957,1756429844782,-7000.0,0.00028992,3]
[381936958,1756429844791,-9022.77600002,0.00029,2]
[381936961,1756429844800,-843.75445333,0.00029,7]
[381936962,1756429844810,-1045.78,0.00029041,8]
[381936964,1756429844819,-450.0,0.00029041,5]
[381936966,1756429844828,-6148.0,0.00029169,2]
[381936968,1756429844837,-4156.0,0.00029169,2]
[381936970,1756429844846,-21111.0,0.00029169,2]
[381936972,1756429844855,-718.0,0.00029169,2]
[381936974,1756429844865,-207.0,0.0002935,2]
[381936976,1756429844874,-207.0,0.0002935,30]
[381936978,1756429844883,-1692.935858,0.000295,2]
[381936980,1756429844893,-6838.05938773,0.00029509,2]
[381936982,1756429844903,-5000.0,0.00029509,2]
[381936984,1756429844912,-5000.0,0.00029509,2]
[381936986,1756429844921,-1040.47755561,0.00029527,5]
[381936988,1756429844930,-1101.68270983,0.00029527,5]
[381936990,1756429844939,-1129.6051708,0.00029527,5]
[381936992,1756429844948,-1036.85532046,0.00029527,5]
[381936994,1756429844957,-1132.16440176,0.00029527,5]
[381936996,1756429844966,-1090.09338911,0.00029527,5]
[381936998,1756429844975,-1104.00872362,0.00029527,5]
[381937000,1756429844984,-1121.33933136,0.00029527,5]
[381937002,1756429844993,-1029.64242463,0.00029527,5]
[381937004,1756429845002,-1111.52698958,0.00029527,5]
[381937006,1756429845012,-1054.11211048,0.00029527,5]
[381937008,1756429845022,-1016.25131655,0.00029527,5]
[381937010,1756429845030,-1109.34783216,0.00029527,5]
[381937012,1756429845039,-1005.8796878,0.00029527,5]
[381937014,1756429845048,-1001.96057814,0.00029527,5]
[381937016,1756429845057,-1029.67435379,0.00029527,5]
[381937018,1756429845066,-1053.96451947,0.00029527,5]
[381937020,1756429845075,-1070.37935057,0.00029527,5]
[381937022,1756429845084,-1020.14492983,0.00029527,5]
[381937024,1756429845093,-1111.1920867,0.00029527,5]
[381937025,1756429845102,-1007.65252214,0.00029527,5]
[381937027,1756429845111,-1122.46401718,0.00029527,5]
[381937029,1756429845120,-1113.50148923,0.00029527,5]
[381937031,1756429845130,-1098.8142241,0.00029527,5]
[381937033,1756429845139,-1109.27009463,0.00029527,5]
[381937035,1756429845148,-1098.86040861,0.00029527,5]
[381937037,1756429845157,-1117.36704255,0.00029527,5]
[381937039,1756429845166,-1123.17141782,0.00029527,5]
[381937041,1756429845175,-1036.24401043,0.00029527,5]
[381937043,1756429845184,-1137.05306952,0.00029527,5]
[381937045,1756429845192,-1075.51769325,0.00029527,5]
[381937047,1756429845202,-1080.15687968,0.00029527,5]
[381937049,1756429845210,-1063.4371812,0.00029527,5]
[381937051,1756429845219,-1026.221187,0.00029527,5]
[381937053,1756429845228,-1036.38158881,0.00029527,5]
[381937055,1756429845237,-1127.26274033,0.00029527,5]
[381937057,1756429845247,-1011.69738651,0.00029527,5]
[381937059,1756429845256,-1767.5234409,0.00029527,5]
[381937061,1756429845265,-550.0,0.00029589,5]
[381937063,1756429845274,-345.87,0.00029727,30]
[381937065,1756429845283,-2000.0,0.0002985,2]
[381937066,1756429845301,-2000.0,0.0002985,2]
[381937068,1756429845311,-7397.58767534,0.00029886,12]
[381937070,1756429845320,-1400.0,0.0003,5]
[381937072,1756429845329,-65360.22313407,0.0003,5]
[381937074,1756429845338,-10000.0,0.0003,10]
[381937076,1756429845347,-15511.79036839,0.0003,14]
[381937078,1756429845357,-844.34409723,0.0003,10]
[381937080,1756429845370,-181.0,0.0003,2]
[381937082,1756429845380,-391.0,0.0003,2]
[381937084,1756429845392,-201.35,0.0003,2]
[381937086,1756429845402,-420.25,0.0003,2]
[381937088,1756429845410,-409.82097998,0.0003,10]
[381937090,1756429845422,-160.0,0.0003,10]
[381937092,1756429845432,-160.0,0.0003,10]
[381937094,1756429845441,-160.0,0.0003,10]
[381937096,1756429845451,-1500.0,0.0003,2]
[381937098,1756429845462,-529.0,0.000301,2]
[381937100,1756429845471,-200.0,0.00030136,2]
[381937102,1756429845480,-200.0,0.00030136,2]
[381937104,1756429845489,-650.0,0.00030137,5]
[381937106,1756429845499,-384.63394623,0.00030199,2]
[381937108,1756429845508,-180.09576514,0.00030376,5]
[381937110,1756429845517,-20902.54781261,0.000304,2]
[381937112,1756429845526,-200.0,0.00030437,2]
[381937114,1756429845535,-200.0,0.00030437,2]
[381937116,1756429845544,-3368.0,0.00030479,2]
[381937118,1756429845553,-1256.0,0.00030479,2]
[381937120,1756429845562,-2028.0,0.00030479,2]
[381937122,1756429845572,-926.0,0.00030479,2]
[381937124,1756429845581,-1298.0,0.00030479,2]
[381937126,1756429845590,-566.0,0.00030479,2]
[381937128,1756429845599,-599.0,0.00030479,2]
[381937130,1756429845608,-1575.0,0.00030479,2]
[381937132,1756429845619,-3843.23614981,0.000305,3]
[381937134,1756429845628,-750.0,0.00030685,5]
[381937136,1756429845637,-200.0,0.00030742,2]
[381937138,1756429845646,-200.0,0.00030742,2]
[381937140,1756429845655,-500.0,0.00030752,2]
[381937142,1756429845664,-1500.0,0.00030752,2]
[381937144,1756429845673,-172.9,0.00030822,2]
[381937146,1756429845683,-207.0,0.0003086,2]
[381937148,1756429845692,-207.0,0.0003086,30]
[381937149,1756429845701,-7397.58767534,0.00030883,15]
[381937151,1756429845710,-361078.50307226,0.00031,5]
[381937153,1756429845720,-1693.93,0.00031,30]
[381937155,1756429845729,-181.0,0.00031,30]
[381937157,1756429845740,-1580.0,0.00031,15]
[381937159,1756429845749,-200.0,0.00031049,2]
[381937161,1756429845758,-200.0,0.00031049,2]
[381937163,1756429845767,-150.0,0.00031156,7]
[381937165,1756429845776,-150.0,0.00031156,7]
[381937167,1756429845785,-150.0,0.00031156,7]
[381937169,1756429845794,-150.0,0.00031156,7]
[381937171,1756429845804,-150.0,0.00031156,7]
[381937173,1756429845813,-150.0,0.00031156,7]
[381937175,1756429845823,-150.0,0.00031156,7]
[381937177,1756429845832,-150.0,0.00031156,7]
[381937179,1756429845842,-150.0,0.00031156,7]
[381937181,1756429845852,-150.0,0.00031156,7]
[381937182,1756429845862,-150.0,0.00031156,7]
[381937183,1756429845873,-150.0,0.00031156,7]
[381937184,1756429845882,-239.712,0.00031156,7]
[381937185,1756429845891,-879.73,0.000312,7]
[381937186,1756429845901,-1045.78,0.00031232,10]
[381937187,1756429845910,-850.0,0.00031233,5]
[381937188,1756429845919,-345.87,0.00031272,30]
[381937189,1756429845929,-515.0,0.0003129,2]
[381937190,1756429845938,-200.0,0.0003136,2]
[381937192,1756429845947,-19220.93802709,0.0003143,4]
[381937194,1756429845956,-398.86540225,0.00031568,2]
[381937195,1756429845966,-152.0,0.00031645,3]
[381937197,1756429845975,-177.84480109,0.00031678,15]
[381937199,1756429845984,-29253.27,0.000317,2]
[381937201,1756429845993,-950.0,0.00031781,5]
[381937203,1756429846002,-6883.0,0.00031824,2]
[381937206,1756429846012,-7397.58767534,0.0003188,17]
[381937207,1756429846022,-168.05293381,0.0003189,30]
[381937209,1756429846031,-4418.21,0.000319,7]
[381937211,1756429846040,-34794.23,0.000319,7]
[381937213,1756429846049,-204.0,0.00032,120]
[381937215,1756429846059,-181.0,0.00032,30]
[381937217,1756429846068,-29253.27,0.00032,2]
[381937219,1756429846078,-34794.23,0.00032,7]
[381937222,1756429846087,-402.0,0.00032,14]
[381937223,1756429846097,-6148.0,0.00032169,2]
[381937226,1756429846107,-4156.0,0.00032169,2]
[381937229,1756429846121,-21111.0,0.00032169,2]
[381937231,1756429846130,-718.0,0.00032169,2]
[381937233,1756429846139,-168.05293381,0.00032247,30]
[381937235,1756429846149,-402.0,0.00032298,14]
[381937253,1756429846306,-1050.0,0.00032329,5]
[381937255,1756429846315,-207.0,0.0003237,2]
[381937257,1756429846325,-207.0,0.0003237,30]
[381937259,1756429846335,-4418.21,0.000324,7]
[381937261,1756429846344,-501.0,0.0003247,2]
[381937263,1756429846353,-810.07148166,0.00032603,2]
[381937265,1756429846366,-150.0,0.00032799,120]
[381937267,1756429846375,-345.87,0.00032818,30]
[381937269,1756429846388,-2500.0,0.00032845,7]
[381937271,1756429846397,-6296.60758325,0.00032852,30]
[381937273,1756429846406,-1040.81646361,0.00032877,5]
[381937275,1756429846416,-7397.58767534,0.00032877,19]
[381937277,1756429846427,-500.0,0.00032877,7]
[381937279,1756429846437,-34794.23,0.000329,14]
[381937280,1756429846447,-2500.0,0.000329,7]